[Event "Live Chess"]
[Site "Chess.com"]
[Date "2010.12.13"]
[Round "-"]
[White "hipposcottimus"]
[Black "katolo"]
[Result "1-0"]
[CurrentPosition "2k3r1/pp1n4/2p1p3/4P3/3P4/8/Pr3R1P/R4K2 b - -"]
[Timezone "UTC"]
[ECO "B10"]
[ECOUrl "https://www.chess.com/openings/Caro-Kann-Defense-2.Nf3-d5"]
[UTCDate "2010.12.13"]
[UTCTime "22:10:30"]
[WhiteElo "1683"]
[BlackElo "1682"]
[TimeControl "60"]
[Termination "hipposcottimus won on time"]
[StartTime "22:10:30"]
[EndDate "2010.12.13"]
[EndTime "22:12:34"]
[Link "https://www.chess.com/game/live/77010751"]

1. e4 {[%clk 0:01:00]} 1... c6 {[%clk 0:01:00]} 2. Nf3 {[%clk 0:00:59.6]} 2... d5 {[%clk 0:00:59.3]} 3. e5 {[%clk 0:00:59.3]} 3... d4 {[%clk 0:00:57.8]} 4. c3 {[%clk 0:00:57.7]} 4... dxc3 {[%clk 0:00:56]} 5. Nxc3 {[%clk 0:00:56]} 5... Bg4 {[%clk 0:00:55.1]} 6. d4 {[%clk 0:00:55]} 6... e6 {[%clk 0:00:53.9]} 7. Be2 {[%clk 0:00:53.4]} 7... Bb4 {[%clk 0:00:51.1]} 8. Bg5 {[%clk 0:00:51.6]} 8... Ne7 {[%clk 0:00:49.4]} 9. Bd2 {[%clk 0:00:49.9]} 9... h6 {[%clk 0:00:47.7]} 10. O-O {[%clk 0:00:48.6]} 10... Nd7 {[%clk 0:00:45.8]} 11. Ne1 {[%clk 0:00:44.3]} 11... Bf5 {[%clk 0:00:42.1]} 12. Bg4 {[%clk 0:00:38.7]} 12... Bxc3 {[%clk 0:00:37.6]} 13. Bxf5 {[%clk 0:00:37.3]} 13... Nxf5 {[%clk 0:00:36.2]} 14. Bxc3 {[%clk 0:00:36.1]} 14... g5 {[%clk 0:00:35.2]} 15. Qh5 {[%clk 0:00:32.7]} 15... Qe7 {[%clk 0:00:28.3]} 16. f4 {[%clk 0:00:31.5]} 16... O-O-O {[%clk 0:00:25.4]} 17. fxg5 {[%clk 0:00:30.3]} 17... hxg5 {[%clk 0:00:24.6]} 18. Qg4 {[%clk 0:00:29.8]} 18... Rh4 {[%clk 0:00:19.5]} 19. Qe2 {[%clk 0:00:24.6]} 19... Rdh8 {[%clk 0:00:18.4]} 20. Nf3 {[%clk 0:00:23.7]} 20... Rg4 {[%clk 0:00:12]} 21. Bd2 {[%clk 0:00:21.2]} 21... Nh4 {[%clk 0:00:10.2]} 22. Bxg5 {[%clk 0:00:18.9]} 22... Nxf3+ {[%clk 0:00:07.1]} 23. Qxf3 {[%clk 0:00:14.9]} 23... Rxg5 {[%clk 0:00:06.5]} 24. Qxf7 {[%clk 0:00:13.3]} 24... Qxf7 {[%clk 0:00:05.9]} 25. Rf6 {[%clk 0:00:12.5]} 25... Rhg8 {[%clk 0:00:05.2]} 26. Rxf7 {[%clk 0:00:11.7]} 26... Rxg2+ {[%clk 0:00:03.4]} 27. Kf1 {[%clk 0:00:11.5]} 27... Rxb2 {[%clk 0:00:01.3]} 28. Rf2 {[%clk 0:00:08.7]} 1-0

[Event "Live Chess"]
[Site "Chess.com"]
[Date "2010.12.13"]
[Round "-"]
[White "katolo"]
[Black "hipposcottimus"]
[Result "0-1"]
[CurrentPosition "1k1r3r/pp2bppp/1q3n2/2pp3b/8/PPN1PP1P/1BPQBP2/1K1R3R w - -"]
[Timezone "UTC"]
[ECO "D02"]
[ECOUrl "https://www.chess.com/openings/Queens-Pawn-Opening-Zukertort-Variation"]
[UTCDate "2010.12.13"]
[UTCTime "22:08:51"]
[WhiteElo "1690"]
[BlackElo "1675"]
[TimeControl "60"]
[Termination "hipposcottimus won on time"]
[StartTime "22:08:51"]
[EndDate "2010.12.13"]
[EndTime "22:10:17"]
[Link "https://www.chess.com/game/live/77010244"]

1. Nf3 {[%clk 0:01:00]} 1... d5 {[%clk 0:01:00]} 2. d4 {[%clk 0:00:59]} 2... Bg4 {[%clk 0:00:59.7]} 3. e3 {[%clk 0:00:58.4]} 3... Nc6 {[%clk 0:00:58.6]} 4. a3 {[%clk 0:00:56.9]} 4... e5 {[%clk 0:00:57.8]} 5. dxe5 {[%clk 0:00:55.3]} 5... Nxe5 {[%clk 0:00:56.6]} 6. b3 {[%clk 0:00:54.8]} 6... Nxf3+ {[%clk 0:00:55.7]} 7. gxf3 {[%clk 0:00:53.6]} 7... Bh5 {[%clk 0:00:54.6]} 8. Bb2 {[%clk 0:00:52.9]} 8... Nf6 {[%clk 0:00:53.4]} 9. Be2 {[%clk 0:00:52.1]} 9... Be7 {[%clk 0:00:50.3]} 10. Nc3 {[%clk 0:00:51]} 10... Qd7 {[%clk 0:00:48.5]} 11. Qd2 {[%clk 0:00:45.2]} 11... O-O-O {[%clk 0:00:46.5]} 12. O-O-O {[%clk 0:00:44.1]} 12... c5 {[%clk 0:00:46.2]} 13. Bb5 {[%clk 0:00:26.3]} 13... Qd6 {[%clk 0:00:42.3]} 14. Be2 {[%clk 0:00:09.4]} 14... Kb8 {[%clk 0:00:40.1]} 15. Kb1 {[%clk 0:00:07.3]} 15... Qc6 {[%clk 0:00:37.2]} 16. h3 {[%clk 0:00:06.3]} 16... Qb6 {[%clk 0:00:36.2]} 0-1

[Event "Live Chess"]
[Site "Chess.com"]
[Date "2010.12.13"]
[Round "-"]
[White "lungulescu1"]
[Black "hipposcottimus"]
[Result "0-1"]
[CurrentPosition "r4rk1/ppp2ppp/8/8/8/3R1N1b/PP3PqP/5RK1 w - -"]
[Timezone "UTC"]
[ECO "C20"]
[ECOUrl "https://www.chess.com/openings/Kings-Pawn-Opening-Napoleon-Attack"]
[UTCDate "2010.12.13"]
[UTCTime "21:29:32"]
[WhiteElo "1564"]
[BlackElo "1666"]
[TimeControl "60"]
[Termination "hipposcottimus won by checkmate"]
[StartTime "21:29:32"]
[EndDate "2010.12.13"]
[EndTime "21:30:32"]
[Link "https://www.chess.com/game/live/76999351"]

1. e4 {[%clk 0:01:00]} 1... e5 {[%clk 0:01:00]} 2. Qf3 {[%clk 0:00:58.6]} 2... Nc6 {[%clk 0:00:59.6]} 3. Bc4 {[%clk 0:00:58.1]} 3... Nf6 {[%clk 0:00:58.7]} 4. d3 {[%clk 0:00:57.4]} 4... Nd4 {[%clk 0:00:57.9]} 5. Qd1 {[%clk 0:00:56.1]} 5... d5 {[%clk 0:00:57]} 6. c3 {[%clk 0:00:55.6]} 6... dxc4 {[%clk 0:00:55.8]} 7. cxd4 {[%clk 0:00:55]} 7... cxd3 {[%clk 0:00:55.5]} 8. dxe5 {[%clk 0:00:53.5]} 8... Nxe4 {[%clk 0:00:53.6]} 9. Qxd3 {[%clk 0:00:52.4]} 9... Qxd3 {[%clk 0:00:52.4]} 10. Nd2 {[%clk 0:00:50.6]} 10... Nxd2 {[%clk 0:00:50]} 11. Bxd2 {[%clk 0:00:48.9]} 11... Qe4+ {[%clk 0:00:49.6]} 12. Be3 {[%clk 0:00:45.2]} 12... Qxe5 {[%clk 0:00:49.2]} 13. Nf3 {[%clk 0:00:44.2]} 13... Qe6 {[%clk 0:00:46.8]} 14. O-O {[%clk 0:00:43.5]} 14... Bd6 {[%clk 0:00:43.8]} 15. Rfe1 {[%clk 0:00:43]} 15... O-O {[%clk 0:00:42.9]} 16. Bc5 {[%clk 0:00:40.5]} 16... Qg6 {[%clk 0:00:41.6]} 17. Bxd6 {[%clk 0:00:37.5]} 17... Qxd6 {[%clk 0:00:41.3]} 18. Rad1 {[%clk 0:00:35.3]} 18... Qg6 {[%clk 0:00:41]} 19. Rd3 {[%clk 0:00:33.4]} 19... Bh3 {[%clk 0:00:40.1]} 20. Rf1 {[%clk 0:00:32.1]} 20... Qxg2# {[%clk 0:00:38.3]} 0-1

[Event "Live Chess"]
[Site "Chess.com"]
[Date "2010.12.13"]
[Round "-"]
[White "hipposcottimus"]
[Black "CAPTAILPLAYER"]
[Result "1-0"]
[CurrentPosition "4rrk1/p2q1ppQ/1ppp4/8/2PP4/2N1n3/PPB3PP/R4RK1 b - -"]
[Timezone "UTC"]
[ECO "B02"]
[ECOUrl "https://www.chess.com/openings/Alekhines-Defense-John-Tracy-Gambit"]
[UTCDate "2010.12.13"]
[UTCTime "21:28:11"]
[WhiteElo "1660"]
[BlackElo "1404"]
[TimeControl "60"]
[Termination "hipposcottimus won by checkmate"]
[StartTime "21:28:11"]
[EndDate "2010.12.13"]
[EndTime "21:29:10"]
[Link "https://www.chess.com/game/live/76999049"]

1. e4 {[%clk 0:01:00]} 1... Nf6 {[%clk 0:01:00]} 2. Nf3 {[%clk 0:00:59.7]} 2... Nxe4 {[%clk 0:00:58.8]} 3. d3 {[%clk 0:00:59.3]} 3... Nxf2 {[%clk 0:00:57.9]} 4. Kxf2 {[%clk 0:00:57.9]} 4... e5 {[%clk 0:00:57]} 5. Be2 {[%clk 0:00:57.4]} 5... Bc5+ {[%clk 0:00:55.5]} 6. Be3 {[%clk 0:00:54.8]} 6... Bxe3+ {[%clk 0:00:54]} 7. Kxe3 {[%clk 0:00:54.5]} 7... e4 {[%clk 0:00:52.8]} 8. Kf2 {[%clk 0:00:54]} 8... e3+ {[%clk 0:00:50.4]} 9. Kxe3 {[%clk 0:00:51.8]} 9... O-O {[%clk 0:00:49.4]} 10. Kf2 {[%clk 0:00:51.5]} 10... d6 {[%clk 0:00:48.2]} 11. Rf1 {[%clk 0:00:51.2]} 11... Bg4 {[%clk 0:00:46.9]} 12. Kg1 {[%clk 0:00:50.5]} 12... Bxf3 {[%clk 0:00:46.1]} 13. Bxf3 {[%clk 0:00:50.2]} 13... Nd7 {[%clk 0:00:45.2]} 14. c4 {[%clk 0:00:47.5]} 14... c6 {[%clk 0:00:43.7]} 15. Nc3 {[%clk 0:00:47.2]} 15... b6 {[%clk 0:00:41.9]} 16. Qc2 {[%clk 0:00:46.9]} 16... Nf6 {[%clk 0:00:40.8]} 17. d4 {[%clk 0:00:46.6]} 17... Qd7 {[%clk 0:00:38.5]} 18. Bd1 {[%clk 0:00:43.8]} 18... Ng4 {[%clk 0:00:37.2]} 19. Qd3 {[%clk 0:00:40.9]} 19... Rae8 {[%clk 0:00:34.3]} 20. Bc2 {[%clk 0:00:39.8]} 20... Ne3 {[%clk 0:00:33]} 21. Qxh7# {[%clk 0:00:38.5]} 1-0

[Event "Live Chess"]
[Site "Chess.com"]
[Date "2010.12.13"]
[Round "-"]
[White "hipposcottimus"]
[Black "onedaime"]
[Result "1-0"]
[CurrentPosition "8/p1p5/4Rp1p/2k5/1b6/6P1/5PKP/8 b - -"]
[Timezone "UTC"]
[ECO "C41"]
[ECOUrl "https://www.chess.com/openings/Philidor-Defense-3.Bc4-Nf6"]
[UTCDate "2010.12.13"]
[UTCTime "21:25:26"]
[WhiteElo "1657"]
[BlackElo "1532"]
[TimeControl "60"]
[Termination "hipposcottimus won on time"]
[StartTime "21:25:26"]
[EndDate "2010.12.13"]
[EndTime "21:27:45"]
[Link "https://www.chess.com/game/live/76998250"]

1. e4 {[%clk 0:01:00]} 1... e5 {[%clk 0:01:00]} 2. Nf3 {[%clk 0:00:59.7]} 2... d6 {[%clk 0:00:59.7]} 3. Bc4 {[%clk 0:00:59.3]} 3... Nf6 {[%clk 0:00:59.4]} 4. d4 {[%clk 0:00:59]} 4... h6 {[%clk 0:00:58.6]} 5. dxe5 {[%clk 0:00:58.3]} 5... dxe5 {[%clk 0:00:58.1]} 6. Qxd8+ {[%clk 0:00:57.7]} 6... Kxd8 {[%clk 0:00:57.6]} 7. Nxe5 {[%clk 0:00:57.5]} 7... Ke7 {[%clk 0:00:57]} 8. Nxf7 {[%clk 0:00:57.2]} 8... Rh7 {[%clk 0:00:56.3]} 9. e5 {[%clk 0:00:55.7]} 9... Be6 {[%clk 0:00:55.4]} 10. Bxe6 {[%clk 0:00:51.2]} 10... Kxe6 {[%clk 0:00:54.2]} 11. Nd8+ {[%clk 0:00:46]} 11... Kxe5 {[%clk 0:00:52]} 12. Nxb7 {[%clk 0:00:45.6]} 12... Nc6 {[%clk 0:00:50.4]} 13. Nc5 {[%clk 0:00:40.6]} 13... Nd4 {[%clk 0:00:48.4]} 14. Nd3+ {[%clk 0:00:40.2]} 14... Kd5 {[%clk 0:00:46.9]} 15. O-O {[%clk 0:00:39.5]} 15... Nxc2 {[%clk 0:00:45.7]} 16. Nc3+ {[%clk 0:00:37.7]} 16... Kd4 {[%clk 0:00:43.7]} 17. Rb1 {[%clk 0:00:37.3]} 17... Kxd3 {[%clk 0:00:42.4]} 18. Rd1+ {[%clk 0:00:35.1]} 18... Kc4 {[%clk 0:00:41.4]} 19. Rd2 {[%clk 0:00:32.4]} 19... Nb4 {[%clk 0:00:40]} 20. Nd1 {[%clk 0:00:24.2]} 20... Bc5 {[%clk 0:00:37.2]} 21. Ne3+ {[%clk 0:00:23.8]} 21... Kb5 {[%clk 0:00:35.9]} 22. a4+ {[%clk 0:00:21.8]} 22... Kxa4 {[%clk 0:00:33.7]} 23. b3+ {[%clk 0:00:21.6]} 23... Kb5 {[%clk 0:00:32.6]} 24. Nc4 {[%clk 0:00:20.8]} 24... Re8 {[%clk 0:00:29.5]} 25. Na3+ {[%clk 0:00:20.2]} 25... Kb6 {[%clk 0:00:27.2]} 26. Bb2 {[%clk 0:00:17.9]} 26... Nc6 {[%clk 0:00:24.9]} 27. Bxf6 {[%clk 0:00:16.5]} 27... gxf6 {[%clk 0:00:23.6]} 28. Nc4+ {[%clk 0:00:16.2]} 28... Kb5 {[%clk 0:00:21.9]} 29. Rd5 {[%clk 0:00:11.7]} 29... Rhe7 {[%clk 0:00:17.8]} 30. Na3+ {[%clk 0:00:11.4]} 30... Kb4 {[%clk 0:00:15.8]} 31. Rdd1 {[%clk 0:00:10.2]} 31... Na5 {[%clk 0:00:14.4]} 32. Nc2+ {[%clk 0:00:08.9]} 32... Kc3 {[%clk 0:00:12.7]} 33. Ne1 {[%clk 0:00:08.1]} 33... Rxe1+ {[%clk 0:00:10.4]} 34. Rxe1 {[%clk 0:00:06.7]} 34... Rxe1+ {[%clk 0:00:09.7]} 35. Rxe1 {[%clk 0:00:06.4]} 35... Bb4 {[%clk 0:00:09.3]} 36. Re3+ {[%clk 0:00:06.1]} 36... Kd4 {[%clk 0:00:07.1]} 37. g3 {[%clk 0:00:05.9]} 37... Kc5 {[%clk 0:00:04.3]} 38. Re2 {[%clk 0:00:05.1]} 38... Nxb3 {[%clk 0:00:03]} 39. Kg2 {[%clk 0:00:04.8]} 39... Nd4 {[%clk 0:00:02.2]} 40. Re4 {[%clk 0:00:02.4]} 40... Ne6 {[%clk 0:00:00.3]} 41. Rxe6 {[%clk 0:00:01.8]} 1-0

[Event "Live Chess"]
[Site "Chess.com"]
[Date "2010.12.13"]
[Round "-"]
[White "onedaime"]
[Black "hipposcottimus"]
[Result "0-1"]
[CurrentPosition "6k1/p4ppp/8/8/4P3/1Pq3P1/P2P2KP/8 w - -"]
[Timezone "UTC"]
[ECO "A00"]
[ECOUrl "https://www.chess.com/openings/Kings-Fianchetto-Opening-1...e5-2.Bg2-d5"]
[UTCDate "2010.12.13"]
[UTCTime "21:22:59"]
[WhiteElo "1537"]
[BlackElo "1652"]
[TimeControl "60"]
[Termination "hipposcottimus won on time"]
[StartTime "21:22:59"]
[EndDate "2010.12.13"]
[EndTime "21:25:12"]
[Link "https://www.chess.com/game/live/76997579"]

1. g3 {[%clk 0:01:00]} 1... e5 {[%clk 0:01:00]} 2. Bg2 {[%clk 0:00:59.7]} 2... d5 {[%clk 0:00:59.8]} 3. b3 {[%clk 0:00:59.2]} 3... c5 {[%clk 0:00:59.5]} 4. Bb2 {[%clk 0:00:58.7]} 4... d4 {[%clk 0:00:59.2]} 5. c3 {[%clk 0:00:57.3]} 5... Nf6 {[%clk 0:00:58.9]} 6. cxd4 {[%clk 0:00:56.5]} 6... exd4 {[%clk 0:00:58.8]} 7. e3 {[%clk 0:00:55.9]} 7... Qe7 {[%clk 0:00:56.2]} 8. Qe2 {[%clk 0:00:53.4]} 8... Qd6 {[%clk 0:00:51.8]} 9. exd4+ {[%clk 0:00:51.8]} 9... Be7 {[%clk 0:00:50.1]} 10. dxc5 {[%clk 0:00:50.8]} 10... Qxc5 {[%clk 0:00:49.1]} 11. Nc3 {[%clk 0:00:48.9]} 11... Be6 {[%clk 0:00:46.8]} 12. Nf3 {[%clk 0:00:47.9]} 12... O-O {[%clk 0:00:44.3]} 13. O-O {[%clk 0:00:47.3]} 13... Bd6 {[%clk 0:00:40.9]} 14. Rac1 {[%clk 0:00:46.2]} 14... Bd5 {[%clk 0:00:39.1]} 15. Nd1 {[%clk 0:00:43.8]} 15... Qb6 {[%clk 0:00:35.2]} 16. Bd4 {[%clk 0:00:39.4]} 16... Qd8 {[%clk 0:00:30.6]} 17. Nc3 {[%clk 0:00:37.1]} 17... Re8 {[%clk 0:00:28.1]} 18. Qd3 {[%clk 0:00:35.6]} 18... Be4 {[%clk 0:00:26.2]} 19. Qc4 {[%clk 0:00:30.1]} 19... Nc6 {[%clk 0:00:25.9]} 20. Bxf6 {[%clk 0:00:28.6]} 20... Qxf6 {[%clk 0:00:23.6]} 21. Rfe1 {[%clk 0:00:26.9]} 21... Ne5 {[%clk 0:00:22.1]} 22. Nxe5 {[%clk 0:00:25.5]} 22... Bxg2 {[%clk 0:00:19.7]} 23. Kxg2 {[%clk 0:00:24.4]} 23... Bxe5 {[%clk 0:00:19.1]} 24. Ne4 {[%clk 0:00:20.6]} 24... Qf5 {[%clk 0:00:15.1]} 25. Nc5 {[%clk 0:00:15.5]} 25... Qc8 {[%clk 0:00:13.3]} 26. Rc2 {[%clk 0:00:10.9]} 26... Qc6+ {[%clk 0:00:12.2]} 27. f3 {[%clk 0:00:09]} 27... b6 {[%clk 0:00:11.8]} 28. Rxe5 {[%clk 0:00:07.7]} 28... Rxe5 {[%clk 0:00:10.3]} 29. Nd3 {[%clk 0:00:05.5]} 29... Rc5 {[%clk 0:00:09.5]} 30. Qxc5 {[%clk 0:00:04.5]} 30... bxc5 {[%clk 0:00:09.2]} 31. Nxc5 {[%clk 0:00:03.9]} 31... Qf6 {[%clk 0:00:07.1]} 32. Rc3 {[%clk 0:00:03]} 32... Re8 {[%clk 0:00:06.1]} 33. Ne4 {[%clk 0:00:01.6]} 33... Rxe4 {[%clk 0:00:04.8]} 34. fxe4 {[%clk 0:00:00.8]} 34... Qxc3 {[%clk 0:00:04]} 0-1

[Event "Live Chess"]
[Site "Chess.com"]
[Date "2010.12.13"]
[Round "-"]
[White "hipposcottimus"]
[Black "onedaime"]
[Result "1-0"]
[CurrentPosition "8/4k3/5R2/1p2P3/2bP4/4K2P/1P4P1/8 b - -"]
[Timezone "UTC"]
[ECO "C02"]
[ECOUrl "https://www.chess.com/openings/French-Defense-Advance-Variation"]
[UTCDate "2010.12.13"]
[UTCTime "21:20:36"]
[WhiteElo "1646"]
[BlackElo "1543"]
[TimeControl "60"]
[Termination "hipposcottimus won by resignation"]
[StartTime "21:20:36"]
[EndDate "2010.12.13"]
[EndTime "21:22:40"]
[Link "https://www.chess.com/game/live/76996931"]

1. e4 {[%clk 0:01:00]} 1... e6 {[%clk 0:01:00]} 2. d4 {[%clk 0:00:58.3]} 2... d5 {[%clk 0:00:59.7]} 3. e5 {[%clk 0:00:58]} 3... Nc6 {[%clk 0:00:57.6]} 4. f4 {[%clk 0:00:57.6]} 4... f6 {[%clk 0:00:56.9]} 5. Nf3 {[%clk 0:00:57.3]} 5... fxe5 {[%clk 0:00:55.9]} 6. fxe5 {[%clk 0:00:57.1]} 6... b6 {[%clk 0:00:53.6]} 7. Bg5 {[%clk 0:00:56.8]} 7... Nge7 {[%clk 0:00:51.2]} 8. Be2 {[%clk 0:00:54]} 8... h6 {[%clk 0:00:50.6]} 9. Bh4 {[%clk 0:00:52.3]} 9... g5 {[%clk 0:00:49.9]} 10. Nxg5 {[%clk 0:00:52]} 10... hxg5 {[%clk 0:00:48.4]} 11. Bxg5 {[%clk 0:00:51.8]} 11... Bh6 {[%clk 0:00:47.7]} 12. Bf6 {[%clk 0:00:50.3]} 12... Rh7 {[%clk 0:00:44.9]} 13. O-O {[%clk 0:00:49.1]} 13... Bg7 {[%clk 0:00:44.1]} 14. Bh5+ {[%clk 0:00:47.3]} 14... Rxh5 {[%clk 0:00:39.1]} 15. Qxh5+ {[%clk 0:00:44.8]} 15... Kd7 {[%clk 0:00:38.1]} 16. Bxg7 {[%clk 0:00:43.4]} 16... Qg8 {[%clk 0:00:34.2]} 17. Bf6 {[%clk 0:00:42.1]} 17... Bb7 {[%clk 0:00:29.7]} 18. Bxe7 {[%clk 0:00:39]} 18... Kxe7 {[%clk 0:00:28.2]} 19. Rf7+ {[%clk 0:00:38.7]} 19... Qxf7 {[%clk 0:00:26.4]} 20. Qxf7+ {[%clk 0:00:36.8]} 20... Kxf7 {[%clk 0:00:25.7]} 21. Nc3 {[%clk 0:00:36.5]} 21... Rg8 {[%clk 0:00:24.6]} 22. Rf1+ {[%clk 0:00:36.3]} 22... Ke7 {[%clk 0:00:24.1]} 23. Nb5 {[%clk 0:00:35.9]} 23... a6 {[%clk 0:00:22.6]} 24. Nxc7 {[%clk 0:00:34.9]} 24... Kd7 {[%clk 0:00:22]} 25. Nxe6 {[%clk 0:00:33.6]} 25... Kxe6 {[%clk 0:00:21]} 26. Rf6+ {[%clk 0:00:33.4]} 26... Kd7 {[%clk 0:00:19.1]} 27. h3 {[%clk 0:00:33.1]} 27... Nxd4 {[%clk 0:00:17.3]} 28. c3 {[%clk 0:00:32.5]} 28... Ne2+ {[%clk 0:00:16.5]} 29. Kf2 {[%clk 0:00:30.9]} 29... Nf4 {[%clk 0:00:13.1]} 30. Rxf4 {[%clk 0:00:29.8]} 30... b5 {[%clk 0:00:12.6]} 31. Rf6 {[%clk 0:00:28.3]} 31... d4 {[%clk 0:00:11.5]} 32. Rf7+ {[%clk 0:00:26.9]} 32... Kc8 {[%clk 0:00:09.6]} 33. cxd4 {[%clk 0:00:22]} 33... Bd5 {[%clk 0:00:08.4]} 34. Rf6 {[%clk 0:00:18.7]} 34... Bxa2 {[%clk 0:00:07.3]} 35. Rxa6 {[%clk 0:00:16.9]} 35... Rf8+ {[%clk 0:00:06]} 36. Ke3 {[%clk 0:00:14.9]} 36... Bc4 {[%clk 0:00:05.5]} 37. Ra8+ {[%clk 0:00:13.7]} 37... Kd7 {[%clk 0:00:03.8]} 38. Rxf8 {[%clk 0:00:13.4]} 38... Ke7 {[%clk 0:00:02.9]} 39. Rf6 {[%clk 0:00:13.1]} 1-0

[Event "Live Chess"]
[Site "Chess.com"]
[Date "2010.12.13"]
[Round "-"]
[White "onedaime"]
[Black "hipposcottimus"]
[Result "0-1"]
[CurrentPosition "r5k1/ppp2ppp/8/8/1PPPp3/1PK1q3/1B4r1/RN6 w - -"]
[Timezone "UTC"]
[ECO "C57"]
[ECOUrl "https://www.chess.com/openings/Italian-Game-Knight-Attack-Polerio-Defense"]
[UTCDate "2010.12.13"]
[UTCTime "21:18:50"]
[WhiteElo "1549"]
[BlackElo "1640"]
[TimeControl "60"]
[Termination "hipposcottimus won by checkmate"]
[StartTime "21:18:50"]
[EndDate "2010.12.13"]
[EndTime "21:20:14"]
[Link "https://www.chess.com/game/live/76996497"]

1. e4 {[%clk 0:01:00]} 1... e5 {[%clk 0:01:00]} 2. Nf3 {[%clk 0:00:59.4]} 2... Nc6 {[%clk 0:00:59.8]} 3. Bc4 {[%clk 0:00:58.6]} 3... Nf6 {[%clk 0:00:59.2]} 4. Ng5 {[%clk 0:00:57.6]} 4... d5 {[%clk 0:00:58.9]} 5. exd5 {[%clk 0:00:55.9]} 5... Na5 {[%clk 0:00:58]} 6. Bb3 {[%clk 0:00:52.1]} 6... Nxb3 {[%clk 0:00:56.2]} 7. axb3 {[%clk 0:00:51.5]} 7... Nxd5 {[%clk 0:00:55.9]} 8. Nf3 {[%clk 0:00:49.9]} 8... Bd6 {[%clk 0:00:54.1]} 9. Qe2 {[%clk 0:00:48.9]} 9... Bg4 {[%clk 0:00:48.7]} 10. h3 {[%clk 0:00:47]} 10... Nf4 {[%clk 0:00:47.5]} 11. Qe3 {[%clk 0:00:44.6]} 11... Nxg2+ {[%clk 0:00:46.1]} 12. Ke2 {[%clk 0:00:41.7]} 12... Nxe3 {[%clk 0:00:45.8]} 13. fxe3 {[%clk 0:00:41.2]} 13... Bxf3+ {[%clk 0:00:45]} 14. Kxf3 {[%clk 0:00:40.4]} 14... O-O {[%clk 0:00:43.7]} 15. Rg1 {[%clk 0:00:38.3]} 15... Qf6+ {[%clk 0:00:43.3]} 16. Ke2 {[%clk 0:00:36.7]} 16... Rfe8 {[%clk 0:00:43.1]} 17. c3 {[%clk 0:00:35.5]} 17... e4 {[%clk 0:00:42.8]} 18. b4 {[%clk 0:00:33]} 18... Qh4 {[%clk 0:00:42.3]} 19. b3 {[%clk 0:00:31.1]} 19... Qxh3 {[%clk 0:00:41.7]} 20. Bb2 {[%clk 0:00:30]} 20... Qf3+ {[%clk 0:00:39.8]} 21. Ke1 {[%clk 0:00:27.4]} 21... Bg3+ {[%clk 0:00:39.4]} 22. Rxg3 {[%clk 0:00:24.1]} 22... Qxg3+ {[%clk 0:00:38.6]} 23. Ke2 {[%clk 0:00:23.6]} 23... Qf3+ {[%clk 0:00:38.2]} 24. Ke1 {[%clk 0:00:23.2]} 24... Re6 {[%clk 0:00:36.8]} 25. c4 {[%clk 0:00:21.6]} 25... Rg6 {[%clk 0:00:36.4]} 26. d4 {[%clk 0:00:18.6]} 26... Rg1+ {[%clk 0:00:35.8]} 27. Kd2 {[%clk 0:00:18.1]} 27... Rg2+ {[%clk 0:00:34.6]} 28. Kc3 {[%clk 0:00:17.6]} 28... Qxe3# {[%clk 0:00:32.5]} 0-1

[Event "Live Chess"]
[Site "Chess.com"]
[Date "2010.12.13"]
[Round "-"]
[White "hipposcottimus"]
[Black "onedaime"]
[Result "1-0"]
[CurrentPosition "r1bk1b1Q/pppnRp2/3P2pp/8/2B2P2/8/PPP3PP/RNB3K1 w - -"]
[Timezone "UTC"]
[ECO "C41"]
[ECOUrl "https://www.chess.com/openings/Philidor-Defense-3.Bc4"]
[UTCDate "2010.12.13"]
[UTCTime "21:17:36"]
[WhiteElo "1634"]
[BlackElo "1555"]
[TimeControl "60"]
[Termination "hipposcottimus won by resignation"]
[StartTime "21:17:36"]
[EndDate "2010.12.13"]
[EndTime "21:18:28"]
[Link "https://www.chess.com/game/live/76996156"]

1. e4 {[%clk 0:01:00]} 1... e5 {[%clk 0:01:00]} 2. Nf3 {[%clk 0:00:59.7]} 2... d6 {[%clk 0:00:59.5]} 3. Bc4 {[%clk 0:00:59.4]} 3... h6 {[%clk 0:00:57.8]} 4. d4 {[%clk 0:00:59]} 4... exd4 {[%clk 0:00:56.5]} 5. Nxd4 {[%clk 0:00:58.6]} 5... Nc6 {[%clk 0:00:55.5]} 6. O-O {[%clk 0:00:57]} 6... Nxd4 {[%clk 0:00:54.6]} 7. Qxd4 {[%clk 0:00:56.8]} 7... Nf6 {[%clk 0:00:51.9]} 8. f4 {[%clk 0:00:52.7]} 8... g6 {[%clk 0:00:50.5]} 9. e5 {[%clk 0:00:51]} 9... Nd7 {[%clk 0:00:43.6]} 10. exd6 {[%clk 0:00:44.1]} 10... Be7 {[%clk 0:00:39.7]} 11. Qxh8+ {[%clk 0:00:42.2]} 11... Bf8 {[%clk 0:00:38.5]} 12. Re1+ {[%clk 0:00:41.8]} 12... Qe7 {[%clk 0:00:36.3]} 13. Rxe7+ {[%clk 0:00:40.5]} 13... Kd8 {[%clk 0:00:34.8]} 1-0